fUSD/lending_fUSD_20250503
["ID","MTS","AMOUNT","RATE_DAILY","PERIOD"]
[359753722,1746300632836,-450.0,0.00019597,2]
[359753723,1746300632846,-450.0,0.00019597,2]
[359753724,1746300632858,-450.0,0.00019597,2]
[359753725,1746300632868,-450.0,0.00019597,2]
[359753726,1746300632877,-411.31801786,0.00019597,2]
[359753727,1746300632888,-38.68198214,0.00019597,2]
[359753728,1746300632898,-785.66,0.00019597,2]
[359753729,1746300632907,-450.0,0.00019597,2]
[359753730,1746300632916,-450.0,0.00019597,2]
[359753731,1746300632927,-450.0,0.00019597,2]
[359753732,1746300632937,-468.70797676,0.00019597,2]
[359753733,1746300632947,-2988.16970447,0.00019597,2]
[359753744,1746300637440,-355.6818228,0.00019597,2]
[359753745,1746300637459,-1911.90847273,0.00019597,2]
[359753746,1746300637468,-450.0,0.00019597,2]
[359753747,1746300637478,-450.0,0.00019597,2]
[359753748,1746300637488,-1947.47,0.00019597,2]
[359753749,1746300637498,-450.0,0.00019597,2]
[359753750,1746300637508,-450.0,0.00019597,2]
[359753751,1746300637519,-450.0,0.00019597,2]
[359753752,1746300637529,-450.0,0.00019597,2]
[359753753,1746300637538,-450.0,0.00019597,2]
[359753754,1746300637548,-450.0,0.00019597,2]
[359753755,1746300637557,-450.0,0.00019597,2]
[359753756,1746300637566,-4455.97,0.00019597,2]
[359753757,1746300637575,-450.0,0.00019597,2]
[359753758,1746300637585,-450.0,0.00019597,2]
[359753759,1746300637594,-450.0,0.00019597,2]
[359753760,1746300637603,-1461.363297,0.00019597,2]
[359753761,1746300637612,-450.0,0.00019597,2]
[359753762,1746300637620,-450.0,0.00019597,2]
[359753763,1746300637630,-728.06,0.00019597,2]
[359753764,1746300637640,-450.0,0.00019597,2]
[359753765,1746300637649,-450.0,0.00019597,2]
[359753766,1746300637659,-450.0,0.00019597,2]
[359753767,1746300637668,-450.0,0.00019597,2]
[359753768,1746300637677,-450.0,0.00019597,2]
[359753769,1746300637690,-153.30179344,0.00019597,2]
[359753770,1746300637699,-450.0,0.00019597,2]
[359753771,1746300637708,-870.181135,0.00019597,2]
[359753772,1746300637719,-450.0,0.00019597,2]
[359753773,1746300637727,-450.0,0.00019597,2]
[359753774,1746300637738,-450.0,0.00019597,2]
[359753775,1746300637747,-450.0,0.00019597,2]
[359753776,1746300637756,-450.0,0.00019598,2]
[359753777,1746300637765,-450.0,0.00019598,2]
[359753778,1746300637774,-450.0,0.00019598,2]
[359753779,1746300637784,-450.0,0.00019598,2]
[359753780,1746300637793,-450.0,0.00019598,2]
[359753790,1746300638035,-450.0,0.00019598,2]
[359753791,1746300638046,-665.43,0.00019598,2]
[359753792,1746300638057,-450.0,0.00019598,2]
[359753793,1746300638066,-450.0,0.00019598,2]
[359753794,1746300638075,-450.0,0.00019598,2]
[359753795,1746300638084,-450.0,0.00019598,2]
[359753796,1746300638093,-450.0,0.00019598,2]
[359753797,1746300638102,-450.0,0.00019598,2]
[359753798,1746300638111,-450.0,0.00019598,2]
[359753799,1746300638120,-450.0,0.00019598,2]
[359753800,1746300638129,-450.0,0.00019598,2]
[359753801,1746300638138,-450.0,0.00019598,2]
[359753802,1746300638147,-450.0,0.00019598,2]
[359753803,1746300638156,-450.0,0.00019598,2]
[359753804,1746300638165,-450.0,0.00019598,2]
[359753805,1746300638175,-450.0,0.00019598,2]
[359753806,1746300638185,-450.0,0.00019598,2]
[359753807,1746300638194,-450.0,0.00019598,2]
[359753808,1746300638203,-450.0,0.00019598,2]
[359753809,1746300638212,-450.0,0.00019598,2]
[359753810,1746300638222,-450.0,0.00019598,2]
[359753811,1746300638231,-450.0,0.00019598,2]
[359753812,1746300638240,-450.0,0.00019598,2]
[359753813,1746300638249,-450.0,0.00019598,2]
[359753814,1746300638258,-875.15,0.00019598,2]
[359753815,1746300638267,-450.0,0.00019598,2]
[359753816,1746300638276,-264.07665122,0.00019598,2]
[359753817,1746300638286,-475.05,0.00019598,2]
[359753818,1746300638295,-450.0,0.00019598,2]
[359753819,1746300638304,-450.0,0.00019598,2]
[359753820,1746300638313,-450.0,0.00019598,2]
[359753821,1746300638323,-450.0,0.00019598,2]
[359753822,1746300638332,-450.0,0.00019598,2]
[359753823,1746300638341,-450.0,0.00019598,2]
[359753824,1746300638350,-450.0,0.00019598,2]
[359753825,1746300638359,-450.0,0.00019598,2]
[359753826,1746300638369,-450.0,0.00019598,2]
[359753827,1746300638378,-454.69914751,0.00019598,2]
[359753828,1746300638388,-450.0,0.00019598,2]
[359753829,1746300638397,-450.0,0.00019598,2]
[359753830,1746300638406,-450.0,0.00019598,2]
[359753831,1746300638415,-450.0,0.00019598,2]
[359753832,1746300638424,-450.0,0.00019598,2]
[359753833,1746300638433,-450.0,0.00019598,2]
[359753834,1746300638443,-450.0,0.00019598,2]
[359753835,1746300638452,-450.0,0.00019598,2]
[359753836,1746300638461,-450.0,0.00019598,2]
[359753837,1746300638470,-600.27,0.00019598,2]
[359753838,1746300638479,-450.0,0.00019598,2]
[359753839,1746300638488,-585.9,0.00019598,2]
[359753840,1746300638497,-450.0,0.00019598,2]
[359753841,1746300638506,-450.0,0.00019598,2]
[359753842,1746300638515,-450.0,0.00019598,2]
[359753843,1746300638524,-450.0,0.00019598,2]
[359753844,1746300638533,-450.0,0.00019598,2]
[359753845,1746300638542,-450.0,0.00019598,2]
[359753846,1746300638552,-450.0,0.00019598,2]
[359753847,1746300638561,-450.0,0.00019598,2]
[359753848,1746300638570,-450.0,0.00019598,2]
[359753849,1746300638580,-1296.81,0.00019598,2]
[359753850,1746300638589,-450.0,0.00019598,2]
[359753851,1746300638598,-450.0,0.00019598,2]
[359753852,1746300638607,-450.0,0.00019598,2]
[359753853,1746300638616,-450.0,0.00019598,2]
[359753854,1746300638625,-450.0,0.00019598,2]
[359753855,1746300638634,-450.0,0.00019598,2]
[359753856,1746300638643,-450.0,0.00019598,2]
[359753857,1746300638652,-1069.13,0.00019598,2]
[359753858,1746300638662,-450.0,0.00019598,2]
[359753859,1746300638671,-450.0,0.00019598,2]
[359753860,1746300638681,-4926.74,0.00019598,2]
[359753861,1746300638694,-450.0,0.00019598,2]
[359753862,1746300638703,-185.97104946,0.00019598,2]
[359753863,1746300638713,-450.0,0.00019598,2]
[359753864,1746300638722,-509.1,0.00019598,2]
[359753865,1746300638731,-450.0,0.00019598,2]
[359753866,1746300638741,-450.0,0.00019598,2]
[359753867,1746300638750,-450.0,0.00019598,2]
[359753868,1746300638762,-751.31,0.00019598,2]
[359753869,1746300638772,-450.0,0.00019598,2]
[359753870,1746300638781,-450.0,0.00019598,2]
[359753871,1746300638790,-450.0,0.00019598,2]
[359753872,1746300638799,-378.91010937,0.00019598,2]
[359753873,1746300638808,-6325.36,0.00019598,2]
[359753874,1746300638818,-1675.3,0.00019598,2]
[359753875,1746300638827,-450.0,0.00019598,2]
[359753876,1746300638837,-450.0,0.00019598,2]
[359753877,1746300638846,-663.21,0.00019598,2]
[359753878,1746300638855,-4241.28,0.00019598,2]
[359753879,1746300638864,-630.27,0.00019598,2]
[359753880,1746300638874,-504.34,0.00019598,2]
[359753881,1746300638883,-387.09477588,0.00019598,2]
[359753882,1746300638892,-450.0,0.00019598,2]
[359753883,1746300638901,-657.1,0.00019598,2]
[359753884,1746300638910,-450.0,0.00019598,2]
[359753885,1746300638919,-1197.03,0.00019598,2]
[359753886,1746300638930,-4340.86,0.00019598,2]
[359753887,1746300638939,-2491.84,0.00019598,2]
[359753888,1746300638949,-450.0,0.00019598,2]
[359753889,1746300638958,-36255.42,0.00019598,2]
[359753890,1746300638967,-450.0,0.00019598,2]
[359753891,1746300638976,-702.2,0.00019598,2]
[359753892,1746300638985,-632.78,0.00019598,2]
[359753893,1746300638995,-450.0,0.00019598,2]
[359753894,1746300639006,-1556.56,0.00019598,2]
[359753895,1746300639015,-516.69,0.00019598,2]
[359753896,1746300639024,-478.61,0.00019598,2]
[359753897,1746300639033,-450.0,0.00019598,2]
[359753898,1746300639042,-504.01,0.00019598,2]
[359753899,1746300639052,-450.0,0.00019598,2]
[359753900,1746300639062,-629.84,0.00019598,2]
[359753901,1746300639071,-528.31,0.00019598,2]
[359753902,1746300639080,-450.0,0.00019598,2]
[359753903,1746300639090,-499.41,0.00019598,2]
[359753904,1746300639099,-450.0,0.00019598,2]
[359753905,1746300639108,-3956.66,0.00019598,2]
[359753906,1746300639118,-1135.17,0.00019598,2]
[359753907,1746300639127,-19489.27,0.00019598,2]
[359753908,1746300639137,-871.4,0.00019598,2]
[359753909,1746300639146,-450.0,0.00019598,2]
[359753910,1746300639155,-269.17236981,0.00019598,2]
[359753911,1746300639165,-1340.14,0.00019598,2]
[359753912,1746300639174,-646.5,0.00019598,2]
[359753913,1746300639183,-450.0,0.00019598,2]
[359753914,1746300639193,-450.0,0.00019598,2]
[359753915,1746300639203,-1461.95,0.00019598,2]
[359753916,1746300639212,-450.0,0.00019598,2]
[359753917,1746300639222,-450.0,0.00019598,2]
[359753918,1746300639231,-12192.59,0.00019598,2]
[359753919,1746300639241,-1592.03,0.00019598,2]
[359753920,1746300639251,-450.0,0.00019598,2]
[359753921,1746300639260,-450.0,0.00019598,2]
[359753922,1746300639270,-530.93,0.00019598,2]
[359753923,1746300639279,-450.0,0.00019598,2]
[359753924,1746300639288,-864.19,0.00019598,2]
[359753925,1746300639298,-450.0,0.00019598,2]
[359753926,1746300639307,-450.0,0.00019598,2]
[359753927,1746300639317,-450.0,0.00019598,2]
[359753928,1746300639327,-450.0,0.00019598,2]
[359753929,1746300639336,-450.0,0.00019598,2]
[359753930,1746300639345,-450.0,0.00019598,2]
[359753931,1746300639355,-450.0,0.00019598,2]
[359753932,1746300639364,-95382.12,0.00019598,2]
[359753933,1746300639374,-529.78928757,0.00019598,2]
[359753934,1746300639383,-450.0,0.00019598,2]
[359753935,1746300639393,-450.0,0.00019598,2]
[359753936,1746300639402,-524.78,0.00019598,2]
[359753937,1746300639411,-694.53,0.00019598,2]
[359753938,1746300639421,-514.1,0.00019598,2]
[359753939,1746300639431,-519.81,0.00019598,2]
[359753940,1746300639440,-585.1,0.00019598,2]
[359753941,1746300639451,-450.0,0.00019598,2]
[359753943,1746300639461,-1237.8,0.00019598,2]
[359753945,1746300639471,-450.0,0.00019598,2]
[359753947,1746300639481,-450.0,0.00019598,2]
[359753948,1746300639491,-450.0,0.00019598,2]
[359753949,1746300639500,-880.64,0.00019598,2]
[359753950,1746300639510,-450.0,0.00019598,2]
[359753951,1746300639519,-450.0,0.00019598,2]
[359753952,1746300639530,-454.2,0.00019598,2]
[359753953,1746300639539,-542.9930432,0.00019598,2]
[359753954,1746300639548,-607.51,0.00019598,2]
[359753955,1746300639558,-520.09,0.00019598,2]
[359753956,1746300639567,-450.0,0.00019598,2]
[359753957,1746300639576,-450.0,0.00019598,2]
[359753958,1746300639585,-4050.68,0.00019598,2]
[359753959,1746300639594,-450.0,0.00019598,2]
[359753960,1746300639603,-3978.5,0.00019598,2]
[359753961,1746300639612,-530.21,0.00019598,2]
[359753962,1746300639621,-437.66517775,0.00019598,2]
[359753963,1746300639666,-426.41482225,0.00019598,2]
[359753964,1746300639675,-558.76,0.00019598,2]
[359753965,1746300639689,-327.35349566,0.00019598,2]
[359753966,1746300639702,-122.64650434,0.00019598,2]
[359753967,1746300639712,-450.0,0.00019598,2]
[359753968,1746300639721,-450.0,0.00019598,2]
[359753969,1746300639730,-450.0,0.00019598,2]
[359753970,1746300639739,-1917.32,0.00019598,2]
[359753971,1746300639748,-450.0,0.00019598,2]
[359753972,1746300639757,-450.0,0.00019598,2]
[359753973,1746300639766,-488.04,0.00019598,2]
[359753974,1746300639776,-647.43,0.00019598,2]
[359753975,1746300639785,-927.47,0.00019598,2]
[359753976,1746300639794,-450.0,0.00019598,2]
[359753977,1746300639803,-867.74,0.00019598,2]
[359753978,1746300639812,-450.0,0.00019598,2]
[359753979,1746300639821,-404.32921075,0.00019598,2]
[359753980,1746300639830,-450.0,0.00019598,2]
[359753981,1746300639840,-391.60728727,0.00019598,2]
[359753982,1746300639849,-86103.50375109,0.00019598,2]
[359753983,1746300639859,-450.0,0.00019599,2]
[359753984,1746300639869,-450.0,0.00019599,2]
[359753985,1746300639879,-450.0,0.00019599,2]
[359753986,1746300639889,-450.0,0.00019599,2]
[359753987,1746300639899,-250.0,0.00019599,2]
[359753988,1746300639908,-450.0,0.00019599,2]
[359753989,1746300639918,-450.0,0.00019599,2]
[359753990,1746300639928,-450.0,0.00019599,2]
[359753991,1746300639937,-450.0,0.00019599,2]
[359753992,1746300639946,-500.0,0.00019599,2]
[359753993,1746300639955,-450.0,0.00019599,2]
[359753994,1746300639964,-450.0,0.00019599,2]
[359753995,1746300639973,-450.0,0.00019599,2]
[359753996,1746300639983,-450.0,0.00019599,2]
[359753997,1746300639992,-450.0,0.00019599,2]
[359753998,1746300640002,-450.0,0.00019599,2]
[359753999,1746300640011,-450.0,0.00019599,2]
[359754000,1746300640020,-450.0,0.00019599,2]
[359754001,1746300640030,-450.0,0.00019599,2]
[359754002,1746300640039,-450.0,0.00019599,2]
[359754003,1746300640048,-450.0,0.00019599,2]
[359754004,1746300640058,-450.0,0.00019599,2]
[359754005,1746300640068,-450.0,0.00019599,2]
[359754006,1746300640078,-450.0,0.00019599,2]
[359754007,1746300640088,-450.0,0.00019599,2]
[359754008,1746300640098,-450.0,0.00019599,2]
[359754009,1746300640107,-450.0,0.00019599,2]
[359754010,1746300640117,-450.0,0.00019599,2]
[359754011,1746300640127,-450.0,0.00019599,2]
[359754012,1746300640136,-450.0,0.00019599,2]
[359754013,1746300640145,-450.0,0.00019599,2]
[359754015,1746300640154,-450.0,0.00019599,2]
[359754016,1746300640164,-450.0,0.00019599,2]
[359754017,1746300640173,-450.0,0.00019599,2]
[359754018,1746300640183,-450.0,0.00019599,2]
[359754019,1746300640193,-450.0,0.00019599,2]
[359754020,1746300640203,-450.0,0.00019599,2]
[359754022,1746300640212,-2642.75,0.00019599,2]
[359754023,1746300640222,-450.0,0.00019599,2]
[359754024,1746300640231,-450.0,0.00019599,2]
[359754025,1746300640241,-450.0,0.00019599,2]
[359754026,1746300640251,-450.0,0.00019599,2]
[359754028,1746300640260,-450.0,0.00019599,2]
[359754029,1746300640269,-194.53251863,0.00019599,2]
[359754030,1746300640280,-450.0,0.00019599,2]
[359754031,1746300640289,-532.83,0.00019599,2]
[359754032,1746300640299,-450.0,0.00019599,2]
[359754033,1746300640308,-1408.84,0.00019599,2]
[359754034,1746300640318,-540.22183034,0.00019599,2]
[359754035,1746300640327,-507.28,0.00019599,2]
[359754036,1746300640337,-450.0,0.00019599,2]
[359754037,1746300640346,-527.35,0.00019599,2]
[359754038,1746300640356,-398.10757731,0.00019599,2]
[359754039,1746300640366,-450.0,0.00019599,2]
[359754040,1746300640376,-553.02,0.00019599,2]
[359754041,1746300640386,-450.0,0.00019599,2]
[359754042,1746300640395,-542.07,0.00019599,2]
[359754044,1746300640404,-450.0,0.00019599,2]
[359754045,1746300640414,-450.0,0.00019599,2]
[359754046,1746300640423,-450.0,0.00019599,2]
[359754047,1746300640432,-544.1,0.00019599,2]
[359754048,1746300640441,-450.0,0.00019599,2]
[359754049,1746300640450,-450.0,0.00019599,2]
[359754050,1746300640459,-523.20208212,0.00019599,2]
[359754051,1746300640468,-740.53,0.00019599,2]
[359754052,1746300640477,-450.0,0.00019599,2]
[359754053,1746300640486,-450.0,0.00019599,2]
[359754054,1746300640495,-450.0,0.00019599,2]
[359754055,1746300640504,-564.89707459,0.00019599,2]
[359754056,1746300640514,-510.92426429,0.00019599,2]
[359754057,1746300640523,-450.0,0.00019599,2]
[359754058,1746300640532,-450.0,0.00019599,2]
[359754059,1746300640541,-533.95367948,0.00019599,2]
[359754060,1746300640551,-1107.94,0.00019599,2]
[359754061,1746300640560,-717.1,0.00019599,2]
[359754062,1746300640569,-450.0,0.00019599,2]
[359754063,1746300640579,-529.54923781,0.00019599,2]
[359754064,1746300640588,-638.11,0.00019599,2]
[359754065,1746300640597,-450.0,0.00019599,2]
[359754066,1746300640606,-479.20352983,0.00019599,2]
[359754067,1746300640615,-450.0,0.00019599,2]
[359754068,1746300640625,-482.04692344,0.00019599,2]
[359754069,1746300640634,-450.0,0.00019599,2]
[359754070,1746300640643,-473.97622075,0.00019599,2]
[359754071,1746300640652,-478.88,0.00019599,2]
[359754072,1746300640661,-450.0,0.00019599,2]
[359754073,1746300640671,-450.0,0.00019599,2]
[359754074,1746300640679,-450.0,0.00019599,2]
[359754075,1746300640693,-450.0,0.00019599,2]
[359754076,1746300640702,-450.0,0.00019599,2]
[359754077,1746300640711,-1262.81,0.00019599,2]
[359754078,1746300640721,-450.0,0.00019599,2]
[359754079,1746300640731,-307.94111165,0.00019599,2]
[359754080,1746300640739,-483.42226741,0.00019599,2]
[359754081,1746300640748,-450.0,0.00019599,2]
[359754082,1746300640757,-541.93,0.00019599,2]
[359754083,1746300640767,-450.0,0.00019599,2]
[359754084,1746300640776,-450.0,0.00019599,2]
[359754085,1746300640787,-450.0,0.00019599,2]
[359754086,1746300640796,-450.0,0.00019599,2]
[359754087,1746300640805,-450.0,0.00019599,2]
[359754088,1746300640814,-450.0,0.00019599,2]
[359754089,1746300640824,-450.0,0.00019599,2]
[359754090,1746300640833,-546.24213029,0.00019599,2]
[359754091,1746300640842,-495.78,0.00019599,2]
[359754092,1746300640851,-457.24,0.00019599,2]
[359754093,1746300640860,-450.0,0.00019599,2]
[359754094,1746300640870,-450.0,0.00019599,2]
[359754095,1746300640880,-455.84,0.00019599,2]
[359754096,1746300640890,-450.0,0.00019599,2]
[359754097,1746300640899,-450.0,0.00019599,2]
[359754098,1746300640908,-450.0,0.00019599,2]
[359754099,1746300640917,-490.88189455,0.00019599,2]
[359754100,1746300640926,-450.0,0.00019599,2]
[359754101,1746300640935,-450.0,0.00019599,2]
[359754102,1746300640945,-450.0,0.00019599,2]
[359754103,1746300640955,-450.0,0.00019599,2]
[359754104,1746300640964,-500.0,0.00019599,2]
[359754105,1746300640973,-450.0,0.00019599,2]
[359754106,1746300640982,-167.17367774,0.00019599,2]
[359754107,1746300640991,-480.61657555,0.00019599,2]
[359754108,1746300641001,-450.0,0.00019599,2]
[359754109,1746300641011,-450.0,0.00019599,2]
[359754110,1746300641019,-450.0,0.00019599,2]
[359754111,1746300641029,-561.38599026,0.00019599,2]
[359754112,1746300641040,-474.32117263,0.00019599,2]
[359754113,1746300641051,-519.47554658,0.00019599,2]
[359754114,1746300641060,-500.0,0.00019599,2]
[359754115,1746300641069,-185.50934107,0.00019599,2]
[359754116,1746300641077,-450.0,0.00019599,2]
[359754117,1746300641087,-450.0,0.00019599,2]
[359754118,1746300641096,-450.0,0.00019599,2]
[359754119,1746300641107,-907.11,0.00019599,2]
[359754120,1746300641118,-511.54468994,0.00019599,2]
[359754121,1746300641127,-916.34,0.00019599,2]
[359754122,1746300641136,-450.0,0.00019599,2]
[359754123,1746300641145,-450.0,0.00019599,2]
[359754124,1746300641155,-588.99,0.00019599,2]
[359754125,1746300641164,-450.0,0.00019599,2]
[359754126,1746300641173,-450.0,0.00019599,2]
[359754127,1746300641183,-450.0,0.00019599,2]
[359754128,1746300641192,-2005.89,0.00019599,2]
[359754129,1746300641201,-450.0,0.00019599,2]
[359754130,1746300641210,-450.0,0.00019599,2]
[359754131,1746300641220,-639.94,0.00019599,2]
[359754132,1746300641229,-450.0,0.00019599,2]
[359754133,1746300641239,-450.0,0.00019599,2]
[359754134,1746300641248,-450.0,0.00019599,2]
[359754135,1746300641257,-450.0,0.00019599,2]
[359754136,1746300641267,-610.35,0.00019599,2]
[359754137,1746300641276,-450.0,0.00019599,2]
[359754138,1746300641285,-450.0,0.00019599,2]
[359754139,1746300641294,-405.49534162,0.00019599,2]
[359754140,1746300641304,-450.0,0.00019599,2]
[359754141,1746300641313,-450.0,0.00019599,2]
[359754142,1746300641322,-450.0,0.00019599,2]
[359754143,1746300641331,-450.0,0.00019599,2]
[359754144,1746300641340,-450.0,0.00019599,2]
[359754145,1746300641350,-450.0,0.00019599,2]
[359754146,1746300641359,-450.0,0.00019599,2]
[359754147,1746300641368,-450.0,0.00019599,2]
[359754148,1746300641378,-450.0,0.00019599,2]
[359754149,1746300641388,-450.0,0.00019599,2]
[359754150,1746300641397,-450.0,0.00019599,2]
[359754151,1746300641406,-450.0,0.00019599,2]
[359754152,1746300641415,-450.0,0.00019599,2]
[359754153,1746300641425,-450.0,0.00019599,2]
[359754154,1746300641434,-450.0,0.00019599,2]
[359754155,1746300641443,-699.73,0.00019599,2]
[359754156,1746300641453,-450.0,0.00019599,2]
[359754157,1746300641462,-450.0,0.00019599,2]
[359754158,1746300641471,-468.78,0.00019599,2]
[359754159,1746300641480,-919.9,0.00019599,2]
[359754160,1746300641489,-450.0,0.00019599,2]
[359754161,1746300641498,-515.91,0.00019599,2]
[359754162,1746300641507,-450.0,0.00019599,2]
[359754163,1746300641517,-206.7673008,0.00019599,2]
[359754164,1746300641526,-723.36,0.00019599,2]
[359754165,1746300641536,-450.0,0.00019599,2]
[359754166,1746300641546,-572.8,0.00019599,2]
[359754167,1746300641555,-491.09,0.00019599,2]
[359754168,1746300641565,-450.0,0.00019599,2]
[359754169,1746300641574,-450.0,0.00019599,2]
[359754170,1746300641583,-450.0,0.00019599,2]
[359754172,1746300641593,-450.0,0.00019599,2]
[359754173,1746300641602,-450.0,0.00019599,2]
[359754174,1746300641612,-196.3745295,0.00019599,2]
[359754175,1746300641621,-450.0,0.00019599,2]
[359754176,1746300641630,-2128.89,0.00019599,2]
[359754177,1746300641639,-450.0,0.00019599,2]
[359754178,1746300641649,-500.35,0.00019599,2]
[359754179,1746300641658,-450.0,0.00019599,2]
[359754180,1746300641667,-471.4,0.00019599,2]
[359754181,1746300641676,-1301.65,0.00019599,2]
[359754182,1746300641690,-450.0,0.00019599,2]
[359754183,1746300641699,-450.0,0.00019599,2]
[359754184,1746300641709,-450.0,0.00019599,2]
[359754185,1746300641718,-1069.81,0.00019599,2]
[359754186,1746300641728,-450.0,0.00019599,2]
[359754187,1746300641737,-450.0,0.00019599,2]
[359754188,1746300641747,-450.0,0.00019599,2]
[359754189,1746300641756,-450.0,0.00019599,2]
[359754190,1746300641767,-450.0,0.00019599,2]
[359754191,1746300641776,-465.11,0.00019599,2]
[359754192,1746300641785,-450.0,0.00019599,2]
[359754193,1746300641795,-472.99,0.000196,2]
[359754194,1746300641804,-450.0,0.000196,2]
[359754195,1746300641813,-557.94548119,0.000196,2]
[359754196,1746300641822,-450.0,0.000196,2]
[359754197,1746300641831,-450.0,0.000196,2]
[359754198,1746300641842,-492.12,0.000196,2]
[359754199,1746300641852,-450.0,0.000196,2]
[359754200,1746300641861,-232.03197545,0.000196,2]
[359754201,1746300641870,-450.0,0.000196,2]
[359754202,1746300641882,-450.0,0.000196,2]
[359754203,1746300641892,-580.16,0.000196,2]
[359754204,1746300641903,-202.6477267,0.000196,2]
[359754205,1746300641912,-642.43,0.000196,2]
[359754206,1746300641922,-450.0,0.000196,2]
[359754207,1746300641933,-450.0,0.000196,2]
[359754208,1746300641943,-468.66,0.000196,2]
[359754209,1746300641952,-897.69,0.000196,2]
[359754210,1746300641962,-450.0,0.000196,2]
[359754211,1746300642163,-450.0,0.000196,2]
[359754212,1746300642172,-450.0,0.000196,2]
[359754213,1746300642182,-8467.98,0.000196,2]
[359754214,1746300642191,-450.0,0.000196,2]
[359754215,1746300642202,-15753.59,0.000196,2]
[359754216,1746300642212,-4153.24,0.000196,2]
[359754217,1746300642222,-4858.06,0.000196,2]
[359754218,1746300642231,-450.0,0.000196,2]
[359754219,1746300642241,-450.0,0.000196,2]
[359754220,1746300642252,-150.99,0.000196,2]
[359754221,1746300642261,-150.99,0.000196,2]
[359754222,1746300642272,-450.0,0.000196,2]
[359754223,1746300642282,-579.55,0.000196,2]
[359754224,1746300642291,-487.02448323,0.000196,2]
[359754225,1746300642300,-450.0,0.000196,2]
[359754226,1746300642309,-450.0,0.000196,2]
[359754227,1746300642318,-756.67,0.000196,2]
[359754228,1746300642327,-615.18,0.000196,2]
[359754229,1746300642336,-450.0,0.000196,2]
[359754230,1746300642346,-450.0,0.000196,2]
[359754231,1746300642355,-450.0,0.000196,2]
[359754232,1746300642365,-450.0,0.000196,2]
[359754233,1746300642374,-600.13,0.000196,2]
[359754234,1746300642386,-450.0,0.000196,2]
[359754235,1746300642395,-540.72,0.000196,2]
[359754236,1746300642406,-504.57,0.000196,2]
[359754237,1746300642415,-451.40881658,0.00019601,2]
[359754238,1746300642426,-450.0,0.00019601,2]
[359754239,1746300642436,-450.0,0.00019601,2]
[359754240,1746300642446,-450.0,0.00019601,2]
[359754242,1746300642456,-450.0,0.00019601,2]
[359754244,1746300642466,-865.52208201,0.0001961,2]
[359754246,1746300642475,-6034.49350086,0.0001962,2]
[359754248,1746300642484,-123.85104679,0.00019632,2]
[359754250,1746300642500,-519.750011,0.00019632,2]
[359754254,1746300642511,-922.34510238,0.00019632,2]
[359754256,1746300642522,-779.58771542,0.00019632,2]
[359754258,1746300642538,-349.03655998,0.00019632,2]